{"text_format":"1","workbook":"xlsx","n_sheets":2,"sheets":["График рабочего времени","!Data"],"not_rendered":{"charts":0,"images":0,"macros":1,"external_links":0,"defined_names":1,"comments":0,"pivot_tables":0},"unopened":[],"bounds":{"document_bytes":16777216,"sheet_cells":100000,"rows_first":2000,"rows_last":500,"rows_between":2000,"halvings":0,"cell_chars":16384,"cell_head_chars":4096},"cells_cut":0,"cells_raw":0,"read":"whole","date_system":"1900"}

{"sheet":"График рабочего времени","index":0,"n_rows":20,"n_cols":35,"rows_kept":20,"cut":false,"hidden":false,"merged":[]}
["ФИО","Статус сотрудника","Месяц","Дата","День недели","Время Прихода на рабочее место","Статусы рабочего дня","Ушел","Пришел","Покинул рабочее место\n(Конец рабочего дня)","Объект","NEO GEO (Бутлерова)","АН Головинское","АН Советская Армия","АН Сырьево","АН Яндекс","Внуково","Водный стадион","Водоприбор","Горки 6","Жуковка","Зарядье","Зеленоград выставка","Каланчевский туп.","Краснодар выставка","Краснодар гост.","Никитская","Омск отель","Советская Армия","Спиридоновка","Сырьево спортзал","Урюпинск","Яндекс КР-3","Яндекс лифты и холлы","Яндекс Экстрополис"]
["Вася",{"$f":"IF(A2>0,\"Явился на рабочче место\")","v":"Явился на рабочче место"},{"$f":"D2","v":"2013-08-22"},"2013-08-22",{"$f":"C2","v":"2013-08-22"},"17:08:46","Ушел","17:00:50","17:30:00","20.00","АН Советская Армия","17:10:05",null,"18:00:00"]
["Маша",{"$f":"IF(A3>0,\"Явился на рабочче место\")","v":"Явился на рабочче место"},"2013-08-22","2013-08-22","2013-08-22","17:08:52","Ушел"]
["Петя",{"$f":"IF(A4>0,\"Явился на рабочче место\")","v":"Явился на рабочче место"},"2013-08-22","2013-08-22","2013-08-22","17:08:56","Покинул рабочее место\n(Конец рабочего дня)"]
[null,false,"00:00:00",null,"00:00:00"]
[null,false,"00:00:00",null,"00:00:00"]
[null,false,"00:00:00",null,"00:00:00"]
[null,false,{"$f":"D8","v":"00:00:00"},null,{"$f":"C8","v":"00:00:00"}]
[null,false,"00:00:00",null,"00:00:00"]
[null,false,"00:00:00",null,"00:00:00"]
[null,false,"00:00:00",null,"00:00:00"]
[null,false,"00:00:00",null,"00:00:00"]
[null,false,"00:00:00",null,"00:00:00"]
[null,false,"00:00:00",null,"00:00:00"]
[null,false,"00:00:00",null,"00:00:00"]
[null,false,"00:00:00",null,"00:00:00"]
[null,false,"00:00:00",null,"00:00:00"]
[null,false,"00:00:00",null,"00:00:00"]
[null,false,"00:00:00",null,"00:00:00"]
[null,false,"00:00:00",null,"00:00:00"]

{"sheet":"!Data","index":1,"n_rows":24,"n_cols":3,"rows_kept":24,"cut":false,"hidden":false,"merged":[]}
["Вася","NEO GEO (Бутлерова)","Объект 1"]
["Маша","АН Головинское","Объект 2"]
["Петя","АН Советская Армия","Объект 3"]
["Коля","АН Сырьево","Объект 4"]
["Женя","АН Яндекс","Обед"]
["Валера","Внуково","Конец рабочего дня"]
[null,"Водный стадион"]
[null,"Водоприбор","Ушел"]
[null,"Горки 6","Пришел"]
[null,"Жуковка","Покинул рабочее место\n(Конец рабочего дня)"]
[null,"Зарядье"]
[null,"Зеленоград выставка"]
[null,"Каланчевский туп."]
[null,"Краснодар выставка"]
[null,"Краснодар гост."]
[null,"Никитская"]
[null,"Омск отель"]
[null,"Советская Армия"]
[null,"Спиридоновка"]
[null,"Сырьево спортзал"]
[null,"Урюпинск"]
[null,"Яндекс КР-3"]
[null,"Яндекс лифты и холлы"]
[null,"Яндекс Экстрополис"]